fUSD/lending_fUSD_20240520
["ID","MTS","AMOUNT","RATE_DAILY","PERIOD"]
[327589649,1716246643432,-150.0,0.00035995,2]
[327589650,1716246643442,-8124.09509098,0.00036016,2]
[327589651,1716246643452,-150.0,0.00036017,2]
[327589652,1716246643461,-500.0,0.00036164,2]
[327589653,1716246643471,-150.0,0.00036171,2]
[327589654,1716246643481,-150.0,0.000362,8]
[327589655,1716246643491,-150.0,0.00036255,2]
[327589656,1716246643503,-266.06,0.00036289,120]
[327589657,1716246643513,-339.8,0.000363,3]
[327589658,1716246643522,-339.8,0.000363,3]
[327589659,1716246643532,-339.8,0.000363,3]
[327589660,1716246643543,-339.8,0.000363,3]
[327589661,1716246643553,-339.8,0.000363,3]
[327589662,1716246643563,-339.8,0.000363,3]
[327589663,1716246643573,-339.8,0.000363,3]
[327589664,1716246643583,-339.8,0.000363,3]
[327589665,1716246643593,-339.8,0.000363,3]
[327589666,1716246643602,-339.8,0.000363,3]
[327589667,1716246643613,-339.8,0.000363,3]
[327589668,1716246643623,-339.8,0.000363,3]
[327589669,1716246643632,-339.8,0.000363,3]
[327589670,1716246643641,-339.8,0.000363,3]
[327589671,1716246643651,-339.8,0.000363,3]
[327589672,1716246643660,-339.8,0.000363,3]
[327589673,1716246643671,-339.8,0.000363,3]
[327589674,1716246643682,-339.8,0.000363,3]
[327589675,1716246643693,-339.8,0.000363,3]
[327589676,1716246643704,-339.8,0.000363,3]
[327589677,1716246643714,-200.0,0.00036347,30]
[327589678,1716246643724,-150.0,0.00036368,2]
[327589679,1716246643735,-150.0,0.00036374,2]
[327589680,1716246643744,-150.0,0.00036532,2]
[327589681,1716246643754,-150.0,0.00036554,2]
[327589682,1716246643763,-150.0,0.00036614,2]
[327589683,1716246643772,-150.0,0.00036667,2]
[327589684,1716246643782,-150.0,0.00036692,2]
[327589685,1716246643791,-150.0,0.000367,9]
[327589686,1716246643803,-150.0,0.0003683,2]
[327589687,1716246643814,-150.0,0.00036875,2]
[327589688,1716246643824,-150.0,0.0003697,2]
[327589689,1716246643834,-8124.09509098,0.00036987,2]
[327589690,1716246643844,-250.0,0.00037,2]
[327589691,1716246643854,-250.16342601,0.00037,2]
[327589692,1716246643864,-165.8102368,0.00037025,2]
[327589693,1716246643873,-150.0,0.00037066,2]
[327589694,1716246643883,-228.94813482,0.00037092,2]
[327589695,1716246643895,-150.0,0.00037126,2]
[327589696,1716246643905,-1000.0,0.0003715,6]
[327589697,1716246643914,-150.0,0.000372,9]
[327589698,1716246643925,-1000.0,0.0003725,4]
[327589699,1716246643936,-1000.0,0.0003725,4]
[327589700,1716246643946,-150.0,0.00037257,2]
[327589701,1716246643956,-150.0,0.00037332,2]
[327589702,1716246643965,-1000.0,0.0003735,4]
[327589703,1716246643977,-1000.0,0.0003745,4]
[327589704,1716246643987,-150.0,0.00037461,2]
[327589705,1716246644000,-150.0,0.00037491,2]
[327589706,1716246644011,-1000.0,0.000375,6]
[327589707,1716246644021,-1051.0,0.000375,2]
[327589708,1716246644031,-1000.0,0.0003755,2]
[327589709,1716246644043,-150.0,0.0003763,2]
[327589710,1716246644052,-173.08,0.00037661,2]
[327589711,1716246644063,-150.0,0.000377,9]
[327589712,1716246644072,-157.052108,0.00037748,44]
[327589713,1716246644082,-655.0,0.0003775,4]
[327589714,1716246644091,-1000.0,0.0003779,5]
[327589717,1716246644100,-150.0,0.00037826,2]
[327589719,1716246644109,-150.0,0.00037838,2]
[327589722,1716246644119,-1000.0,0.0003785,4]
[327589725,1716246644128,-1000.0,0.00037852,2]
[327589727,1716246644137,-150.0,0.00037868,2]
[327589730,1716246644147,-150.0,0.0003789,2]
[327589732,1716246644156,-210.92023676,0.000379,10]
[327589734,1716246644165,-1000.0,0.0003795,7]
[327589736,1716246644174,-8124.09509098,0.00037958,2]
[327589738,1716246644184,-3127.0,0.00038,30]
[327589740,1716246644193,-98428.95404807,0.00038,30]
[327589742,1716246644203,-1000.0,0.00038,4]
[327589743,1716246644212,-157.54,0.00038027,30]
[327589744,1716246644221,-150.0,0.0003805,2]
[327589745,1716246644230,-150.0,0.00038065,2]
[327589746,1716246644240,-524.02,0.00038082,2]
[327589747,1716246644250,-150.0,0.00038085,2]
[327589748,1716246644262,-1000.0,0.0003815,7]
[327589749,1716246644273,-7500.0,0.00038155,2]
[327589750,1716246644282,-150.0,0.00038166,2]
[327589751,1716246644291,-150.0,0.00038184,2]
[327589752,1716246644301,-150.0,0.000382,9]
[327589753,1716246644311,-150.0,0.00038207,2]
[327589754,1716246644320,-372.24,0.00038245,2]
[327589755,1716246644329,-1000.0,0.0003825,7]
[327589756,1716246644338,-330.1203,0.00038254,2]
[327589757,1716246644350,-819.7053,0.00038254,2]
[327589758,1716246644359,-179.84489188,0.00038254,2]
[327589759,1716246644369,-33236.8738,0.00038255,2]
[327589760,1716246644378,-100000.0,0.00038255,2]
[327589761,1716246644387,-162.26364251,0.00038256,2]
[327589762,1716246644396,-372.24,0.00038345,2]
[327589763,1716246644406,-165.21465843,0.00038354,4]
[327589764,1716246644415,-155.17573238,0.00038354,4]
[327589765,1716246644424,-155.0,0.00038354,4]
[327589766,1716246644433,-265.67139027,0.00038354,4]
[327589767,1716246644442,-214.51359259,0.00038354,2]
[327589768,1716246644451,-827.26043102,0.00038354,4]
[327589769,1716246644460,-297.05503092,0.00038354,4]
[327589770,1716246644470,-1063.06077755,0.00038354,4]
[327589771,1716246644479,-155.11202737,0.00038354,4]
[327589772,1716246644488,-188.22539335,0.00038354,4]
[327589773,1716246644499,-156.4545868,0.00038354,4]
[327589774,1716246644509,-172.5998299,0.00038354,4]
[327589775,1716246644518,-273.57519809,0.00038354,4]
[327589776,1716246644527,-155.0,0.00038354,4]
[327589777,1716246644537,-15681.11606722,0.00038354,2]
[327589778,1716246644546,-535.6337843,0.00038354,4]
[327589779,1716246644555,-155.76948322,0.00038354,4]
[327589780,1716246644564,-252.03630732,0.00038354,4]
[327589781,1716246644574,-155.0,0.00038354,4]
[327589782,1716246644583,-157.90429605,0.00038354,4]
[327589783,1716246644592,-1580.07063343,0.00038354,4]
[327589784,1716246644602,-281.77826191,0.00038354,4]
[327589785,1716246644611,-5008.2962764,0.00038354,4]
[327589786,1716246644620,-324.70535522,0.00038354,4]
[327589787,1716246644629,-217.33379748,0.00038354,4]
[327589788,1716246644638,-155.0,0.00038354,4]
[327589789,1716246644647,-155.0,0.00038354,4]
[327589790,1716246644656,-387.93842144,0.00038354,4]
[327589791,1716246644665,-8214.99668936,0.00038354,4]
[327589792,1716246644675,-155.0,0.00038354,4]
[327589793,1716246644684,-155.0001,0.00038354,4]
[327589794,1716246644694,-2382.39921483,0.00038354,4]
[327589795,1716246644703,-618.8768531,0.00038354,4]
[327589796,1716246644712,-16773.36788953,0.00038355,4]
[327589797,1716246644721,-46247.90495509,0.00038355,4]
[327589798,1716246644731,-2509.08,0.00038355,5]
[327589799,1716246644740,-988.0,0.00038355,2]
[327589800,1716246644749,-509.10131862,0.00038356,6]
[327589801,1716246644759,-500.0,0.00038356,6]
[327589802,1716246644768,-500.0,0.00038356,6]
[327589803,1716246644777,-507.8253008,0.00038356,6]
[327589804,1716246644786,-500.0,0.00038356,6]
[327589805,1716246644797,-500.0,0.00038356,6]
[327589806,1716246644806,-500.0,0.00038356,6]
[327589807,1716246644817,-500.0,0.00038356,6]
[327589808,1716246644828,-507.36162988,0.00038356,6]
[327589809,1716246644837,-501.28211733,0.00038356,6]
[327589810,1716246644846,-500.0,0.00038356,6]
[327589811,1716246644857,-500.0,0.00038356,6]
[327589812,1716246644866,-500.0,0.00038356,6]
[327589813,1716246644875,-500.0,0.00038356,6]
[327589814,1716246644886,-500.0,0.00038356,6]
[327589815,1716246644895,-500.0,0.00038356,6]
[327589816,1716246644905,-514.48276063,0.00038356,6]
[327589817,1716246644915,-503.93691117,0.00038356,6]
[327589818,1716246644924,-438.1921948,0.00038356,6]
[327589819,1716246644933,-981.39,0.00038356,6]
[327589820,1716246644942,-530.93223049,0.00038356,6]
[327589821,1716246644951,-500.0,0.00038356,6]
[327589822,1716246644960,-502.94831331,0.00038356,6]
[327589823,1716246644969,-500.0,0.00038356,6]
[327589824,1716246644980,-463.45781627,0.00038356,6]
[327589825,1716246644990,-200.0,0.00038356,6]
[327589826,1716246644999,-500.0,0.00038356,6]
[327589827,1716246645009,-524.18,0.00038356,6]
[327589828,1716246645019,-515.53585545,0.00038356,6]
[327589829,1716246645028,-500.0,0.00038356,6]
[327589830,1716246645038,-500.0,0.00038356,6]
[327589831,1716246645047,-500.0,0.00038356,6]
[327589832,1716246645056,-500.0,0.00038356,6]
[327589833,1716246645065,-500.0,0.00038356,6]
[327589834,1716246645075,-500.0,0.00038356,6]
[327589835,1716246645084,-500.0,0.00038356,6]
[327589836,1716246645093,-503.21303478,0.00038356,6]
[327589837,1716246645103,-500.0,0.00038356,6]
[327589838,1716246645112,-500.0,0.00038356,6]
[327589840,1716246645121,-500.0,0.00038356,6]
[327589842,1716246645130,-500.0,0.00038356,6]
[327589844,1716246645139,-500.0,0.00038356,6]
[327589846,1716246645149,-500.0,0.00038356,6]
[327589848,1716246645159,-605.12,0.00038356,6]
[327589850,1716246645167,-500.0,0.00038356,6]
[327589852,1716246645177,-500.0,0.00038356,2]
[327589854,1716246645186,-500.0,0.00038356,6]
[327589856,1716246645196,-500.0,0.00038356,6]
[327589858,1716246645205,-500.0,0.00038356,6]
[327589859,1716246645214,-500.0,0.00038356,6]
[327589860,1716246645224,-993.47,0.00038356,6]
[327589861,1716246645234,-500.0,0.00038356,6]
[327589862,1716246645244,-499.06601804,0.00038356,6]
[327589863,1716246645256,-500.0,0.00038356,6]
[327589864,1716246645266,-500.0,0.00038356,6]
[327589865,1716246645281,-530.94174419,0.00038356,6]
[327589866,1716246645291,-500.0,0.00038356,6]
[327589867,1716246645300,-500.0,0.00038356,6]
[327589868,1716246645311,-500.0,0.00038356,6]
[327589869,1716246645320,-500.0,0.00038356,6]
[327589870,1716246645330,-500.0,0.00038356,6]
[327589871,1716246645339,-500.0,0.00038356,6]
[327589872,1716246645350,-644.94,0.00038356,6]
[327589873,1716246645360,-500.0,0.00038356,6]
[327589874,1716246645370,-500.0,0.00038356,6]
[327589875,1716246645380,-500.0,0.00038356,6]
[327589876,1716246645389,-500.0,0.00038356,6]
[327589877,1716246645398,-500.0,0.00038356,6]
[327589878,1716246645408,-500.0,0.00038356,6]
[327589879,1716246645417,-500.0,0.00038356,6]
[327589880,1716246645427,-500.0,0.00038356,6]
[327589881,1716246645436,-500.0,0.00038356,6]
[327589882,1716246645446,-500.0,0.00038356,6]
[327589883,1716246645455,-500.0,0.00038356,6]
[327589884,1716246645465,-500.0,0.00038356,6]
[327589885,1716246645474,-500.0,0.00038356,6]
[327589886,1716246645484,-500.0,0.00038356,6]
[327589887,1716246645493,-500.0,0.00038356,6]
[327589888,1716246645503,-500.0,0.00038356,6]
[327589889,1716246645513,-500.0,0.00038356,6]
[327589890,1716246645522,-706.15,0.00038356,6]
[327589891,1716246645531,-963.13,0.00038356,6]
[327589892,1716246645541,-675.0,0.00038356,6]
[327589893,1716246645550,-500.0,0.00038356,6]
[327589894,1716246645560,-500.0,0.00038356,6]
[327589895,1716246645569,-617.75,0.00038356,6]
[327589896,1716246645579,-1361.19,0.00038356,6]
[327589897,1716246645589,-500.0,0.00038356,6]
[327589898,1716246645598,-500.0,0.00038356,6]
[327589899,1716246645608,-500.0,0.00038356,6]
[327589900,1716246645618,-500.0,0.00038356,6]
[327589901,1716246645628,-500.0,0.00038356,6]
[327589902,1716246645637,-504.54573424,0.00038356,6]
[327589903,1716246645648,-582.73,0.00038356,6]
[327589904,1716246645657,-500.0,0.00038356,6]
[327589905,1716246645667,-500.0,0.00038356,6]
[327589906,1716246645677,-500.54609934,0.00038356,6]
[327589907,1716246645686,-500.0,0.00038356,6]
[327589908,1716246645696,-489.91003502,0.00038356,6]
[327589909,1716246645705,-500.0,0.00038356,6]
[327589910,1716246645715,-500.0,0.00038356,6]
[327589911,1716246645724,-500.0,0.00038356,6]
[327589912,1716246645734,-500.0,0.00038356,6]
[327589913,1716246645743,-500.0,0.00038356,6]
[327589914,1716246645754,-500.0,0.00038356,6]
[327589915,1716246645763,-523.60368516,0.00038356,6]
[327589916,1716246645772,-500.0,0.00038356,6]
[327589917,1716246645781,-500.0,0.00038356,6]
[327589918,1716246645791,-500.0,0.00038356,6]
[327589919,1716246645800,-500.0,0.00038356,6]
[327589920,1716246645810,-501.98554065,0.00038356,6]
[327589921,1716246645819,-500.0,0.00038356,6]
[327589922,1716246645830,-508.42127304,0.00038356,6]
[327589923,1716246645840,-500.0,0.00038356,6]
[327589924,1716246645849,-546.63802443,0.00038356,6]
[327589925,1716246645859,-500.0,0.00038356,6]
[327589926,1716246645868,-500.0,0.00038356,6]
[327589927,1716246645878,-500.0,0.00038356,6]
[327589928,1716246645887,-511.31655697,0.00038356,6]
[327589929,1716246645897,-192.39721431,0.00038356,6]
[327589930,1716246645907,-500.0,0.00038356,6]
[327589931,1716246645917,-500.0,0.00038356,6]
[327589932,1716246645926,-500.0,0.00038356,6]
[327589933,1716246645936,-500.0,0.00038356,6]
[327589934,1716246645945,-500.0,0.00038356,6]
[327589935,1716246645954,-500.0,0.00038356,6]
[327589936,1716246645964,-500.0,0.00038356,6]
[327589937,1716246645973,-500.0,0.00038356,6]
[327589938,1716246645983,-500.0,0.00038356,6]
[327589939,1716246645993,-500.0,0.00038356,6]
[327589940,1716246646003,-500.0,0.00038356,6]
[327589941,1716246646012,-500.0,0.00038356,6]
[327589942,1716246646022,-513.96660121,0.00038356,6]
[327589943,1716246646032,-500.0,0.00038356,6]
[327589944,1716246646041,-500.0,0.00038356,6]
[327589945,1716246646051,-502.21764402,0.00038356,6]
[327589946,1716246646060,-500.0,0.00038356,6]
[327589947,1716246646069,-500.0,0.00038356,6]
[327589948,1716246646079,-500.0,0.00038356,6]
[327589949,1716246646088,-500.0,0.00038356,6]
[327589950,1716246646096,-652.99,0.00038356,6]
[327589951,1716246646106,-500.0,0.00038356,6]
[327589952,1716246646115,-500.0,0.00038356,6]
[327589953,1716246646125,-500.0,0.00038356,6]
[327589954,1716246646134,-192.61891153,0.00038356,6]
[327589955,1716246646143,-500.0,0.00038356,6]
[327589956,1716246646153,-596.88,0.00038356,6]
[327589957,1716246646162,-305.69204171,0.00038356,6]
[327589958,1716246646171,-500.0,0.00038356,6]
[327589959,1716246646180,-500.0,0.00038356,6]
[327589960,1716246646190,-951.14,0.00038356,6]
[327589961,1716246646199,-500.0,0.00038356,6]
[327589962,1716246646208,-661.32,0.00038356,6]
[327589963,1716246646217,-500.0,0.00038356,6]
[327589964,1716246646226,-1144.55,0.00038356,6]
[327589965,1716246646235,-500.0,0.00038356,6]
[327589966,1716246646244,-544.39620685,0.00038356,6]
[327589967,1716246646254,-500.0,0.00038356,6]
[327589968,1716246646269,-500.0,0.00038356,6]
[327589969,1716246646279,-566.07,0.00038356,6]
[327589970,1716246646289,-566.07,0.00038356,6]
[327589971,1716246646299,-566.07,0.00038356,6]
[327589972,1716246646310,-500.0,0.00038356,6]
[327589973,1716246646320,-566.07,0.00038356,6]
[327589974,1716246646329,-566.07,0.00038356,6]
[327589975,1716246646338,-566.07,0.00038356,6]
[327589976,1716246646349,-566.07,0.00038356,6]
[327589977,1716246646360,-566.07,0.00038356,6]
[327589978,1716246646370,-566.07,0.00038356,6]
[327589979,1716246646379,-566.07,0.00038356,6]
[327589980,1716246646389,-516.08016967,0.00038356,6]
[327589981,1716246646398,-566.07,0.00038356,6]
[327589982,1716246646408,-500.0,0.00038356,6]
[327589983,1716246646417,-198.77328405,0.00038356,6]
[327589984,1716246646427,-500.0,0.00038356,6]
[327589985,1716246646437,-500.0,0.00038356,6]
[327589986,1716246646446,-1432.71,0.00038356,6]
[327589987,1716246646456,-500.0,0.00038356,6]
[327589988,1716246646465,-500.0,0.00038356,6]
[327589989,1716246646475,-525.09249059,0.00038356,6]
[327589990,1716246646485,-500.0,0.00038356,6]
[327589991,1716246646494,-500.0,0.00038356,6]
[327589992,1716246646505,-933.1,0.00038356,6]
[327589993,1716246646515,-500.0,0.00038356,6]
[327589994,1716246646524,-500.0,0.00038356,6]
[327589995,1716246646534,-500.0,0.00038356,6]
[327589996,1716246646543,-157.25995516,0.00038356,6]
[327589997,1716246646552,-500.0,0.00038356,6]
[327589998,1716246646562,-500.0,0.00038356,6]
[327589999,1716246646572,-1010.0,0.00038356,6]
[327590000,1716246646581,-534.60755618,0.00038356,6]
[327590001,1716246646591,-500.0,0.00038356,6]
[327590003,1716246646601,-578.46,0.00038356,6]
[327590005,1716246646611,-620.21,0.00038356,6]
[327590006,1716246646621,-500.0,0.00038356,6]
[327590007,1716246646630,-500.0,0.00038356,2]
[327590008,1716246646640,-544.60738789,0.00038356,6]
[327590009,1716246646649,-500.0,0.00038356,6]
[327590010,1716246646659,-530.98546643,0.00038356,6]
[327590011,1716246646668,-650.53,0.00038356,6]
[327590012,1716246646678,-500.0,0.00038356,6]
[327590013,1716246646688,-693.87,0.00038356,6]
[327590014,1716246646697,-500.0,0.00038356,6]
[327590015,1716246646707,-500.0,0.00038356,6]
[327590016,1716246646717,-542.68,0.00038356,6]
[327590017,1716246646726,-637.78,0.00038356,6]
[327590018,1716246646736,-544.83,0.00038356,6]
[327590019,1716246646745,-991.09,0.00038356,6]
[327590020,1716246646755,-500.0,0.00038356,6]
[327590021,1716246646764,-500.0,0.00038356,6]
[327590022,1716246646774,-1494.37,0.00038356,6]
[327590023,1716246646783,-500.0,0.00038356,6]
[327590024,1716246647011,-500.0,0.00038356,6]
[327590025,1716246647021,-500.0,0.00038356,6]
[327590026,1716246647031,-500.0,0.00038356,6]
[327590027,1716246647041,-500.0,0.00038356,6]
[327590028,1716246647050,-500.0,0.00038356,6]
[327590029,1716246647060,-882.87,0.00038356,6]
[327590030,1716246647069,-500.0,0.00038356,6]
[327590031,1716246647079,-500.0,0.00038356,6]
[327590032,1716246647088,-1368.93,0.00038356,6]
[327590033,1716246647098,-503.77214644,0.00038356,6]
[327590034,1716246647108,-523.72456295,0.00038356,6]
[327590035,1716246647118,-500.0,0.00038356,6]
[327590036,1716246647127,-504.71480599,0.00038356,6]
[327590037,1716246647137,-500.0,0.00038356,6]
[327590038,1716246647147,-500.0,0.00038356,6]
[327590039,1716246647156,-2000.0,0.00038356,30]
[327590040,1716246647166,-500.0,0.00038356,6]
[327590041,1716246647175,-590.13680044,0.00038356,6]
[327590042,1716246647186,-500.0,0.00038356,6]
[327590043,1716246647196,-500.0,0.00038356,6]
[327590044,1716246647208,-500.0,0.00038356,6]
[327590045,1716246647218,-657.4,0.00038356,6]
[327590046,1716246647228,-500.0,0.00038356,6]
[327590047,1716246647238,-500.0,0.00038356,6]
[327590048,1716246647249,-500.0,0.00038356,6]
[327590049,1716246647259,-432.94304203,0.00038356,6]
[327590050,1716246647269,-500.0,0.00038356,6]
[327590051,1716246647281,-500.0,0.00038356,6]
[327590052,1716246647291,-513.45503091,0.00038356,6]
[327590053,1716246647300,-1079.66,0.00038356,6]
[327590054,1716246647310,-818.11,0.00038356,6]
[327590055,1716246647321,-500.0,0.00038356,6]
[327590056,1716246647330,-519.94,0.00038356,6]
[327590057,1716246647340,-529.42,0.00038356,6]
[327590058,1716246647351,-500.0,0.00038356,6]
[327590060,1716246647361,-155.0,0.00038356,6]
[327590061,1716246647371,-500.0,0.00038356,6]
[327590062,1716246647380,-500.0,0.00038356,6]
[327590063,1716246647390,-1104.38,0.00038356,6]
[327590064,1716246647399,-500.0,0.00038356,6]
[327590065,1716246647409,-500.0,0.00038356,6]
[327590066,1716246647418,-517.28,0.00038356,6]
[327590067,1716246647428,-1385.47,0.00038356,6]
[327590068,1716246647438,-443.61728052,0.00038356,6]
[327590069,1716246647447,-889.2,0.00038356,6]
[327590070,1716246647457,-500.0,0.00038356,6]
[327590071,1716246647467,-757.19,0.00038356,6]
[327590072,1716246647476,-500.0,0.00038356,6]
[327590073,1716246647486,-150.17742396,0.00038356,6]
[327590074,1716246647495,-500.0,0.00038356,6]
[327590075,1716246647506,-534.64177118,0.00038356,6]
[327590076,1716246647516,-511.4979886,0.00038356,6]
[327590077,1716246647526,-500.0,0.00038356,6]
[327590078,1716246647535,-834.71,0.00038356,6]
[327590079,1716246647545,-761.68,0.00038356,6]
[327590080,1716246647554,-1297.95,0.00038356,6]
[327590081,1716246647564,-500.0,0.00038356,6]
[327590082,1716246647573,-500.0,0.00038356,6]
[327590083,1716246647583,-500.0,0.00038356,6]
[327590084,1716246647592,-500.0,0.00038356,6]
[327590085,1716246647602,-500.0,0.00038356,6]
[327590086,1716246647611,-635.84,0.00038356,6]
[327590087,1716246647621,-212.4,0.00038356,6]
[327590088,1716246647630,-636.12,0.00038356,6]
[327590089,1716246647640,-500.0,0.00038356,6]
[327590090,1716246647649,-500.0,0.00038356,6]
[327590091,1716246647659,-500.0,0.00038356,6]
[327590092,1716246647668,-500.0,0.00038356,6]
[327590093,1716246647678,-500.0,0.00038356,6]
[327590094,1716246647687,-500.0,0.00038356,6]
[327590095,1716246647697,-500.0,0.00038356,6]
[327590096,1716246647707,-716.2,0.00038356,6]
[327590097,1716246647716,-627.92,0.00038356,6]
[327590098,1716246647726,-500.0,0.00038356,2]
[327590099,1716246647735,-500.0,0.00038356,6]
[327590100,1716246647744,-709.67,0.00038356,6]
[327590101,1716246647756,-500.0,0.00038356,6]
[327590102,1716246647766,-1416.62,0.00038356,6]
[327590103,1716246647777,-1285.82,0.00038356,6]
[327590104,1716246647787,-1184.9,0.00038356,6]
[327590105,1716246647800,-939.67,0.00038356,6]
[327590106,1716246647810,-602.76,0.00038356,6]
[327590107,1716246647819,-500.0,0.00038356,6]
[327590108,1716246647830,-1140.97,0.00038356,6]
[327590109,1716246647842,-500.0,0.00038356,6]
[327590110,1716246647853,-500.0,0.00038356,6]
[327590111,1716246647863,-500.0,0.00038356,6]
[327590112,1716246647873,-879.29,0.00038356,6]
[327590113,1716246647882,-854.23,0.00038356,6]
[327590114,1716246647893,-1264.74,0.00038356,6]
[327590115,1716246647903,-1105.1,0.00038356,6]
[327590116,1716246647913,-1092.97,0.00038356,6]
[327590117,1716246647925,-1545.89,0.00038356,6]
[327590118,1716246647936,-500.0,0.00038356,6]
[327590119,1716246647947,-584.91,0.00038356,6]
[327590120,1716246647958,-500.0,0.00038356,6]
[327590121,1716246647970,-500.0,0.00038356,6]
[327590122,1716246647979,-500.0,0.00038356,6]
[327590123,1716246647989,-500.0,0.00038356,2]
[327590124,1716246647999,-500.0,0.00038356,6]
[327590125,1716246648012,-500.0,0.00038356,6]
[327590126,1716246648021,-788.86,0.00038356,6]
[327590127,1716246648030,-1912.95,0.00038356,6]
[327590128,1716246648039,-500.0,0.00038356,6]
[327590129,1716246648049,-581.85402793,0.00038356,2]
[327590130,1716246648059,-500.0,0.00038356,6]
[327590131,1716246648068,-518.78442317,0.00038356,6]
[327590132,1716246648077,-500.0,0.00038356,6]
[327590133,1716246648087,-500.0,0.00038356,6]
[327590134,1716246648096,-500.0,0.00038356,6]
[327590135,1716246648106,-1492.34,0.00038356,6]
[327590136,1716246648116,-500.0,0.00038356,6]
[327590137,1716246648125,-500.0,0.00038356,6]
[327590138,1716246648134,-500.0,0.00038356,6]
[327590139,1716246648145,-613.68,0.00038356,6]
[327590140,1716246648156,-612.57,0.00038356,6]
[327590141,1716246648167,-500.0,0.00038356,6]
[327590142,1716246648177,-592.41,0.00038356,6]
[327590143,1716246648187,-500.0,0.00038356,6]
[327590144,1716246648196,-500.0,0.00038356,6]
[327590145,1716246648206,-500.0,0.00038356,6]
[327590146,1716246648215,-926.58,0.00038356,6]
[327590147,1716246648225,-500.0,0.00038356,6]
[327590148,1716246648235,-2000.0,0.00038356,6]
[327590149,1716246648244,-500.0,0.00038356,6]
[327590150,1716246648254,-642.72,0.00038356,6]
[327590151,1716246648269,-557.57592882,0.00038356,6]
[327590152,1716246648279,-500.0,0.00038356,6]
[327590153,1716246648289,-500.0,0.00038356,6]
[327590154,1716246648298,-500.0,0.00038356,6]
[327590155,1716246648309,-671.44,0.00038356,6]
[327590156,1716246648319,-500.0,0.00038356,6]
[327590157,1716246648329,-500.0,0.00038356,6]
[327590158,1716246648339,-500.0,0.00038356,6]
[327590159,1716246648349,-500.0,0.00038356,6]
[327590160,1716246648359,-500.0,0.00038356,6]
[327590161,1716246648368,-658.12,0.00038356,6]
[327590162,1716246648377,-500.0,0.00038356,6]
[327590163,1716246648387,-500.0,0.00038356,6]
[327590164,1716246648396,-500.0,0.00038356,6]
[327590165,1716246648406,-679.55,0.00038356,6]
[327590166,1716246648415,-500.0,0.00038356,6]
[327590167,1716246648425,-500.0,0.00038356,2]
[327590168,1716246648434,-500.0,0.00038356,6]
[327590169,1716246648444,-500.0,0.00038356,6]
[327590170,1716246648453,-586.03,0.00038356,6]
[327590171,1716246648464,-548.26,0.00038356,6]
[327590172,1716246648474,-500.0,0.00038356,6]
[327590173,1716246648483,-500.0,0.00038356,6]
[327590174,1716246648493,-500.0,0.00038356,6]
[327590175,1716246648504,-500.0,0.00038356,6]
[327590176,1716246648513,-1512.26,0.00038356,6]
[327590177,1716246648522,-922.44,0.00038356,6]